fUSD/lending_fUSD_20251118
["ID","MTS","AMOUNT","RATE_DAILY","PERIOD"]
[394359152,1763489448044,-200.0,0.00033016,2]
[394359153,1763489448053,-171.29,0.00033016,2]
[394359154,1763489448063,-500.0,0.00033016,2]
[394359155,1763489448072,-2111.99,0.00033016,2]
[394359156,1763489448081,-5055.44182241,0.00033023,2]
[394359157,1763489448097,-510.0,0.00033034,60]
[394359158,1763489448113,-500.0,0.00033034,60]
[394359159,1763489448123,-672.0,0.00033034,60]
[394359160,1763489448133,-500.0,0.00033034,60]
[394359161,1763489448142,-696.1,0.00033041,2]
[394359162,1763489448154,-510.0,0.00033062,60]
[394359163,1763489448164,-500.0,0.00033062,60]
[394359164,1763489448174,-672.0,0.00033062,60]
[394359165,1763489448184,-396.98486352,0.00033062,60]
[394359166,1763489448194,-174.72568648,0.00033065,15]
[394359167,1763489448206,-268.16462858,0.00033065,2]
[394359168,1763489448216,-510.0,0.00033089,60]
[394359169,1763489448225,-500.0,0.00033089,60]
[394359170,1763489448235,-672.0,0.00033089,60]
[394359171,1763489448245,-510.0,0.00033117,60]
[394359172,1763489448255,-500.0,0.00033117,60]
[394359173,1763489448264,-672.0,0.00033117,60]
[394359174,1763489448274,-152.60759887,0.00033117,7]
[394359175,1763489448283,-500.0,0.00033117,7]
[394359176,1763489448292,-500.0,0.00033117,7]
[394359177,1763489448302,-453.50182492,0.00033117,7]
[394359178,1763489448311,-500.0,0.00033117,7]
[394359179,1763489448321,-500.0,0.00033117,7]
[394359180,1763489448331,-500.0,0.00033117,7]
[394359181,1763489448340,-500.0,0.00033117,7]
[394359182,1763489448350,-500.0,0.00033117,7]
[394359183,1763489448360,-500.0,0.00033117,7]
[394359184,1763489448369,-500.0,0.00033117,7]
[394359185,1763489448378,-500.0,0.00033117,7]
[394359186,1763489448387,-500.0,0.00033117,7]
[394359187,1763489448397,-500.0,0.00033117,7]
[394359188,1763489448406,-500.0,0.00033117,7]
[394359189,1763489448415,-500.0,0.00033117,7]
[394359190,1763489448425,-500.0,0.00033117,7]
[394359191,1763489448435,-500.0,0.00033117,7]
[394359192,1763489448445,-500.0,0.00033117,7]
[394359193,1763489448455,-500.0,0.00033117,7]
[394359194,1763489448464,-500.0,0.00033117,7]
[394359195,1763489448474,-500.0,0.00033117,7]
[394359196,1763489448483,-500.0,0.00033117,7]
[394359197,1763489448492,-500.0,0.00033117,7]
[394359198,1763489448501,-30825.7395895,0.00033118,3]
[394359199,1763489448511,-183.52698534,0.00033118,2]
[394359200,1763489448520,-150.43,0.00033118,2]
[394359201,1763489448529,-15412.8697947,0.00033127,3]
[394359202,1763489448539,-19948.82235358,0.00033128,2]
[394359203,1763489448548,-131565.58261542,0.00033128,3]
[394359204,1763489448566,-547.86314549,0.00033128,3]
[394359205,1763489448579,-476.35224409,0.00033128,3]
[394359207,1763489464493,195.0,0.00027349,120]
[394359208,1763489510438,1002.0,0.00041682,30]
[394359211,1763489610603,2916592.72689594,0.00041683,30]
[394359212,1763489612496,1000.0,0.00026106,120]
[394359217,1763489667639,1000.0,0.0003,120]
[394359220,1763489698227,1000.0,0.0003,120]
[394359221,1763489729273,7008.37101321,0.0003,120]
[394359222,1763489756823,1000.0,0.0003,120]
[394359225,1763489929800,630.71,0.00013699,2]
[394359247,1763490430564,205.0,9.8e-05,2]
[394359248,1763490434687,258.08571406,0.000101,2]
[394359284,1763490631383,-357.13375252,0.000166,2]
[394359286,1763490631395,-215.32453813,0.00019973,2]
[394359289,1763490631407,-270.20208449,0.00019973,2]
[394359297,1763490631489,-229.79791551,0.00019973,2]
[394359298,1763490631500,-315.20269062,0.00019973,2]
[394359299,1763490631512,-420.47989202,0.00019973,2]
[394359300,1763490631523,-500.0,0.00019973,2]
[394359301,1763490631534,-494.75873842,0.00019973,2]
[394359302,1763490631545,-1617.13368963,0.00019973,2]
[394359303,1763490631556,-886.0,0.00019989,2]
[394359304,1763490631567,-88392.5606892,0.0001999,2]
[394359305,1763490631581,-4853.09822087,0.0001999,2]
[394359306,1763490631593,-461.89,0.0001999,2]
[394359307,1763490631612,-1527.28196501,0.0001999,2]
[394359308,1763490631625,-4171.73504545,0.0001999,2]
[394359309,1763490631638,-3304.16149517,0.0001999,2]
[394359310,1763490631651,-5378.53161582,0.0001999,2]
[394359311,1763490631664,-43919.97762854,0.0001999,2]
[394359312,1763490631674,-500.0,0.00019999,2]
[394359313,1763490631685,-500.0,0.00019999,2]
[394359314,1763490631697,-500.0,0.00019999,2]
[394359315,1763490631708,-294.37302742,0.00019999,2]
[394359317,1763490631718,-500.0,0.00019999,2]
[394359319,1763490631729,-441.67548155,0.00019999,2]
[394359321,1763490631740,-500.0,0.00019999,2]
[394359324,1763490631751,-1453.83539501,0.0002,5]
[394359326,1763490631762,-60016.12268699,0.0002,5]
[394359328,1763490631773,-630.71,0.00020187,2]
[394359330,1763490631783,-300.0,0.00021197,2]
[394359331,1763490631794,-271.3,0.00021323,2]
[394359334,1763490631805,-300.0,0.00022206,2]
[394359336,1763490631815,-300.0,0.0002395,2]
[394359338,1763490631826,-630.71,0.00026676,2]
[394359339,1763490631837,-2000.0,0.000282,2]
[394359340,1763490631848,-479.30025826,0.00028218,2]
[394359341,1763490631858,-207.32,0.0002876,2]
[394359342,1763490631870,-344.5,0.00028858,2]
[394359343,1763490631880,-187.98194698,0.00029679,2]
[394359344,1763490631892,-300.0,0.000299,10]
[394359345,1763490631903,-10782.90918912,0.00029958,2]
[394359346,1763490631915,-601.94911091,0.00029958,2]
[394359347,1763490631926,-150.99,0.00030046,2]
[394359348,1763490631937,-499.99,0.00030046,2]
[394359349,1763490631947,-66036.76181353,0.00030056,2]
[394359350,1763490631962,-269.99999994,0.00030056,2]
[394359351,1763490631977,-777.99217548,0.00030056,2]
[394359352,1763490631990,-1376.43715447,0.00030056,2]
[394359366,1763490637412,-692.42360236,0.00030056,2]
[394359367,1763490637466,-596.34361244,0.00030056,2]
[394359368,1763490637478,-539.93268809,0.00030056,2]
[394359369,1763490637489,-1580.29999603,0.00030056,2]
[394359370,1763490637501,-293755.62822987,0.00030056,2]
[394359371,1763490637597,-20726.55966546,0.00030056,2]
[394359372,1763490637609,-3134.95363759,0.00030056,2]
[394359373,1763490637629,-1793.89475332,0.00030056,2]
[394359379,1763490639433,-22844.97763648,0.00030056,2]
[394359380,1763490639446,-1487.86978383,0.00030056,2]
[394359381,1763490639458,-11218.8643467,0.00030056,2]
[394359382,1763490639486,-2185.54206641,0.00030056,2]
[394359383,1763490639497,-604.0,0.00030056,2]
[394359384,1763490639553,-921.49632409,0.00030056,2]
[394359385,1763490639565,-342.108,0.00030056,2]
[394359386,1763490639577,-1984.23221572,0.00030056,2]
[394359387,1763490639588,-4972.11440051,0.00030056,2]
[394359388,1763490639599,-716.37,0.00030056,2]
[394359389,1763490639611,-16007.68975075,0.00030056,2]
[394359390,1763490639759,-4384.421697,0.00030056,2]
[394359401,1763490642916,-34857.2,0.00030056,2]
[394359402,1763490642934,-563.8722431,0.00030056,2]
[394359403,1763490642979,-24003.10559548,0.00030056,2]
[394359404,1763490642992,-448.09181401,0.00030056,2]
[394359405,1763490643004,-482.7097,0.00030056,2]
[394359406,1763490643038,-799.77282,0.00030056,2]
[394359407,1763490643052,-1360.09082712,0.00030056,2]
[394359408,1763490643093,-673.3310658,0.00030056,2]
[394359415,1763490645493,-293.80375874,0.00030056,2]
[394359418,1763490645601,-978.65871471,0.00030056,2]
[394359419,1763490645612,-765.50949235,0.00030056,2]
[394359420,1763490645623,-894.05989,0.00030056,2]
[394359421,1763490645655,-455.0,0.00030056,2]
[394359422,1763490645666,-1116.0,0.00030056,2]
[394359423,1763490645877,-9557.6400004,0.00030056,2]
[394359424,1763490645889,-1020.3,0.00030056,2]
[394359425,1763490645926,-67867.56012182,0.00030056,2]
[394359426,1763490645942,-1208.25826342,0.00030056,2]
[394359445,1763490667552,500.0,0.00030055,120]
[394359446,1763490667885,261.46445137,0.00030055,120]
[394359448,1763490695685,500.0,0.00030055,120]
[394359449,1763490695942,500.0,0.00030055,120]
[394359450,1763490698299,500.0,0.00030055,120]
[394359451,1763490714624,500.0,0.00030055,120]
[394359452,1763490714907,500.0,0.00030055,120]
[394359453,1763490715164,500.0,0.00030055,120]
[394359454,1763490715420,500.0,0.00030055,120]
[394359455,1763490716596,500.0,0.00030055,120]
[394359457,1763490741768,500.0,0.00030055,120]
[394359483,1763491208195,-1667767.95001473,0.0004169,30]
[394359484,1763491208253,-27000.0,0.0004169,120]
[394359485,1763491208347,-14450.91108641,0.0004169,30]
[394359486,1763491208409,-10000.999199,0.0004169,30]
[394359487,1763491208464,-514.87985321,0.0004169,120]
[394359488,1763491208514,-163.6519938,0.0004169,120]
[394359489,1763491208566,-504.34,0.0004169,120]
[394359490,1763491208618,-504.34,0.0004169,120]
[394359491,1763491208669,-504.34,0.0004169,120]
[394359492,1763491208725,-504.34,0.0004169,120]
[394359493,1763491208780,-504.34,0.0004169,120]
[394359494,1763491208833,-504.34,0.0004169,120]
[394359495,1763491209122,-504.34,0.0004169,120]
[394359496,1763491209185,-504.34,0.0004169,120]
[394359497,1763491209240,-504.34,0.0004169,120]
[394359498,1763491209297,-504.34,0.0004169,120]
[394359499,1763491209349,-504.34,0.0004169,120]
[394359500,1763491209405,-504.34,0.0004169,120]
[394359501,1763491209470,-504.34,0.0004169,120]
[394359502,1763491209535,-504.34,0.0004169,120]
[394359503,1763491209592,-504.34,0.0004169,120]
[394359504,1763491209641,-504.34,0.0004169,120]
[394359505,1763491209690,-504.34,0.0004169,120]
[394359506,1763491209741,-504.34,0.0004169,120]
[394359507,1763491209792,-504.34,0.0004169,120]
[394359508,1763491209841,-504.34,0.0004169,120]
[394359509,1763491209890,-504.34,0.0004169,120]
[394359510,1763491209936,-504.34,0.0004169,120]
[394359511,1763491209983,-504.34,0.0004169,120]
[394359512,1763491210031,-504.48130263,0.0004169,120]
[394359513,1763491210078,-500.0,0.0004169,120]
[394359514,1763491210125,-500.0,0.0004169,120]
[394359515,1763491210177,-500.0,0.0004169,120]
[394359516,1763491210224,-500.0,0.0004169,120]
[394359517,1763491210272,-500.0,0.0004169,120]
[394359518,1763491210321,-500.0,0.0004169,120]
[394359519,1763491210369,-383.10664006,0.0004169,120]
[394359520,1763491210418,-198.07307831,0.0004169,120]
[394359521,1763491210466,-500.0,0.0004169,120]
[394359522,1763491210515,-500.0,0.0004169,120]
[394359523,1763491210563,-500.01,0.0004169,120]
[394359524,1763491210611,-500.0,0.0004169,120]
[394359525,1763491210657,-500.0,0.0004169,120]
[394359526,1763491210704,-500.0,0.0004169,120]
[394359527,1763491210750,-500.0,0.0004169,120]
[394359528,1763491210794,-500.0,0.0004169,120]
[394359529,1763491210841,-640.89811322,0.0004169,120]
[394359530,1763491210888,-500.0,0.0004169,30]
[394359531,1763491210934,-500.0,0.0004169,30]
[394359532,1763491210980,-464.28160433,0.0004169,120]
[394359533,1763491211027,-500.0,0.0004169,30]
[394359534,1763491211076,-500.0,0.0004169,30]
[394359535,1763491211124,-500.0,0.0004169,30]
[394359536,1763491211175,-500.0,0.0004169,30]
[394359537,1763491211227,-500.0,0.0004169,30]
[394359538,1763491211274,-500.0,0.0004169,30]
[394359539,1763491211320,-500.0,0.0004169,30]
[394359540,1763491211368,-500.0,0.0004169,30]
[394359541,1763491211417,-500.0,0.0004169,30]
[394359542,1763491211465,-500.0,0.0004169,30]
[394359543,1763491211514,-500.0,0.0004169,30]
[394359544,1763491211562,-433.31586633,0.0004169,30]
[394359545,1763491211610,-200.0,0.0004169,30]
[394359546,1763491211661,-200.0,0.0004169,30]
[394359547,1763491211720,-200.0,0.0004169,30]
[394359548,1763491211767,-500.0,0.0004169,120]
[394359549,1763491211813,-500.0,0.0004169,120]
[394359550,1763491211864,-500.0,0.0004169,120]
[394359551,1763491211921,-500.0,0.0004169,120]
[394359552,1763491211972,-500.0,0.0004169,120]
[394359553,1763491212024,-500.0,0.0004169,120]
[394359554,1763491212072,-500.0,0.0004169,120]
[394359555,1763491212122,-500.0,0.0004169,120]
[394359556,1763491212171,-500.0,0.0004169,120]
[394359557,1763491212225,-500.0,0.0004169,120]
[394359558,1763491212273,-503.952,0.0004169,120]
[394359559,1763491212321,-379.48427654,0.0004169,120]
[394359560,1763491212366,-260.78167115,0.0004169,120]
[394359561,1763491212412,-212.39588666,0.0004169,120]
[394359562,1763491212461,-500.0,0.0004169,30]
[394359563,1763491212507,-300.0,0.0004169,120]
[394359564,1763491212554,-425.83064075,0.0004169,120]
[394359565,1763491212609,-1219.0,0.0004169,30]
[394359566,1763491212670,-522.0,0.0004169,120]
[394359567,1763491212726,-518.97412229,0.0004169,120]
[394359568,1763491212775,-223.21143527,0.0004169,120]
[394359569,1763491212829,-241.95961077,0.0004169,120]
[394359570,1763491212881,-500.0,0.0004169,120]
[394359571,1763491212947,-857.6,0.0004169,120]
[394359572,1763491213016,-857.6,0.0004169,120]
[394359573,1763491213072,-857.6,0.0004169,120]
[394359574,1763491213130,-857.6,0.0004169,120]
[394359575,1763491213185,-2589.99,0.0004169,120]
[394359576,1763491213240,-857.6,0.0004169,120]
[394359577,1763491213293,-2589.99,0.0004169,120]
[394359578,1763491213351,-857.6,0.0004169,120]
[394359579,1763491213422,-2589.99,0.0004169,120]
[394359580,1763491213497,-857.6,0.0004169,120]
[394359581,1763491213555,-2589.99,0.0004169,120]
[394359582,1763491213614,-857.6,0.0004169,120]
[394359583,1763491213670,-2589.99,0.0004169,120]
[394359584,1763491213730,-857.6,0.0004169,120]
[394359585,1763491213789,-2589.99,0.0004169,120]
[394359586,1763491213845,-857.6,0.0004169,120]
[394359587,1763491213900,-2589.99,0.0004169,120]
[394359588,1763491213956,-857.6,0.0004169,120]
[394359589,1763491214022,-979.12,0.0004169,120]
[394359590,1763491214097,-857.6,0.0004169,120]
[394359591,1763491214156,-2589.99,0.0004169,120]
[394359592,1763491214223,-500.0,0.0004169,120]
[394359593,1763491214277,-979.12,0.0004169,120]
[394359594,1763491214330,-2589.99,0.0004169,120]
[394359595,1763491214382,-857.6,0.0004169,120]
[394359596,1763491214439,-500.0,0.0004169,120]
[394359597,1763491214496,-979.12,0.0004169,120]
[394359598,1763491214551,-857.6,0.0004169,120]
[394359599,1763491214603,-2589.99,0.0004169,120]
[394359600,1763491214652,-500.0,0.0004169,120]
[394359601,1763491214703,-979.12,0.0004169,120]
[394359602,1763491214758,-2589.99,0.0004169,120]
[394359603,1763491214815,-857.6,0.0004169,120]
[394359604,1763491214866,-500.0,0.0004169,120]
[394359605,1763491214917,-979.12,0.0004169,120]
[394359606,1763491214971,-857.6,0.0004169,120]
[394359607,1763491215021,-500.0,0.0004169,120]
[394359608,1763491215075,-979.12,0.0004169,120]
[394359609,1763491215130,-857.6,0.0004169,120]
[394359610,1763491215186,-2589.99,0.0004169,120]
[394359611,1763491215235,-500.0,0.0004169,120]
[394359612,1763491215289,-979.12,0.0004169,120]
[394359613,1763491215343,-857.6,0.0004169,120]
[394359614,1763491215393,-500.0,0.0004169,120]
[394359615,1763491215445,-979.12,0.0004169,120]
[394359616,1763491215499,-2589.99,0.0004169,120]
[394359617,1763491215554,-857.6,0.0004169,120]
[394359618,1763491215606,-500.0,0.0004169,120]
[394359619,1763491215661,-979.12,0.0004169,120]
[394359620,1763491215715,-857.6,0.0004169,120]
[394359621,1763491215770,-2589.99,0.0004169,120]
[394359622,1763491215820,-500.0,0.0004169,120]
[394359623,1763491215874,-979.12,0.0004169,120]
[394359624,1763491215928,-857.6,0.0004169,120]
[394359625,1763491215981,-2589.99,0.0004169,120]
[394359626,1763491216039,-500.0,0.0004169,120]
[394359627,1763491216095,-979.12,0.0004169,120]
[394359628,1763491216151,-857.6,0.0004169,120]
[394359629,1763491216207,-2589.99,0.0004169,120]
[394359630,1763491216262,-500.0,0.0004169,120]
[394359631,1763491216320,-979.12,0.0004169,120]
[394359632,1763491216377,-2589.99,0.0004169,120]
[394359633,1763491216438,-857.6,0.0004169,120]
[394359634,1763491216494,-500.0,0.0004169,120]
[394359635,1763491216556,-979.12,0.0004169,120]
[394359636,1763491216878,-2589.99,0.0004169,120]
[394359637,1763491216930,-857.83857499,0.0004169,120]
[394359638,1763491216983,-500.0,0.0004169,120]
[394359639,1763491217039,-979.12,0.0004169,120]
[394359640,1763491217095,-2589.99,0.0004169,120]
[394359641,1763491217154,-979.12,0.0004169,120]
[394359642,1763491217206,-2589.99,0.0004169,120]
[394359643,1763491217258,-979.12,0.0004169,120]
[394359644,1763491217307,-465.6,0.0004169,120]
[394359645,1763491217357,-2589.99,0.0004169,120]
[394359646,1763491217411,-979.12,0.0004169,120]
[394359647,1763491217462,-2589.99,0.0004169,120]
[394359648,1763491217517,-979.12,0.0004169,120]
[394359649,1763491217570,-2589.99,0.0004169,120]
[394359650,1763491217627,-979.12,0.0004169,120]
[394359651,1763491217682,-2589.99126206,0.0004169,120]
[394359652,1763491217737,-979.12,0.0004169,120]
[394359653,1763491217788,-979.12,0.0004169,120]
[394359654,1763491217838,-979.12,0.0004169,120]
[394359655,1763491217888,-979.12,0.0004169,120]
[394359656,1763491217938,-979.19727908,0.0004169,120]
[394359657,1763491217991,-500.0,0.0004169,120]
[394359658,1763491218045,-500.0,0.0004169,120]
[394359659,1763491218099,-874.25,0.0004169,120]
[394359660,1763491218149,-874.25,0.0004169,120]
[394359661,1763491218201,-874.25,0.0004169,120]
[394359662,1763491218251,-874.25,0.0004169,120]
[394359663,1763491218303,-874.25,0.0004169,120]
[394359664,1763491218352,-874.25,0.0004169,120]
[394359665,1763491218404,-874.25,0.0004169,120]
[394359666,1763491218453,-874.25,0.0004169,120]
[394359667,1763491218504,-874.25,0.0004169,120]
[394359668,1763491218553,-874.25,0.0004169,120]
[394359669,1763491218605,-874.25,0.0004169,120]
[394359670,1763491218657,-874.25,0.0004169,120]
[394359671,1763491218709,-874.25,0.0004169,120]
[394359672,1763491218759,-874.25,0.0004169,120]
[394359673,1763491218821,-874.25,0.0004169,120]
[394359674,1763491218883,-874.25,0.0004169,120]
[394359675,1763491218939,-874.25,0.0004169,120]
[394359676,1763491218991,-874.25,0.0004169,120]
[394359677,1763491219044,-874.25,0.0004169,120]
[394359678,1763491219096,-874.25,0.0004169,120]
[394359679,1763491219148,-874.25,0.0004169,120]
[394359680,1763491219199,-874.25,0.0004169,120]
[394359681,1763491219253,-874.25,0.0004169,120]
[394359682,1763491219305,-874.44649629,0.0004169,120]
[394359683,1763491219355,-500.0,0.0004169,120]
[394359684,1763491219404,-500.0,0.0004169,120]
[394359685,1763491219454,-500.0,0.0004169,120]
[394359686,1763491219505,-500.0,0.0004169,120]
[394359687,1763491219562,-500.0,0.0004169,120]
[394359688,1763491219613,-500.0,0.0004169,120]
[394359689,1763491219665,-500.0,0.0004169,120]
[394359690,1763491219717,-500.0,0.0004169,120]
[394359691,1763491219769,-500.0,0.0004169,120]
[394359692,1763491219820,-500.0,0.0004169,120]
[394359693,1763491219871,-500.0,0.0004169,120]
[394359694,1763491219922,-500.0,0.0004169,120]
[394359695,1763491219975,-500.0,0.0004169,120]
[394359696,1763491220026,-500.0,0.0004169,120]
[394359697,1763491220078,-500.0,0.0004169,120]
[394359698,1763491220130,-500.0,0.0004169,120]
[394359699,1763491220182,-500.0,0.0004169,120]
[394359700,1763491220234,-500.0,0.0004169,120]
[394359701,1763491220283,-500.0,0.0004169,120]
[394359702,1763491220337,-500.0,0.0004169,120]
[394359703,1763491220385,-500.0,0.0004169,120]
[394359704,1763491220433,-166.98129436,0.0004169,120]
[394359705,1763491220482,-505.16,0.0004169,30]
[394359706,1763491220532,-505.16,0.0004169,30]
[394359707,1763491220594,-505.16,0.0004169,30]
[394359708,1763491220667,-505.16,0.0004169,30]
[394359709,1763491220724,-505.16,0.0004169,30]
[394359710,1763491220775,-505.16,0.0004169,30]
[394359711,1763491220824,-505.16,0.0004169,30]
[394359712,1763491220873,-505.16,0.0004169,30]
[394359713,1763491220926,-505.16,0.0004169,30]
[394359714,1763491220977,-505.16,0.0004169,30]
[394359715,1763491221026,-505.16,0.0004169,30]
[394359716,1763491221079,-505.16,0.0004169,30]
[394359717,1763491221130,-505.16,0.0004169,30]
[394359718,1763491221183,-505.16,0.0004169,30]
[394359719,1763491221231,-505.16,0.0004169,30]
[394359720,1763491221279,-505.16,0.0004169,30]
[394359721,1763491221327,-505.16,0.0004169,30]
[394359722,1763491221373,-505.16,0.0004169,30]
[394359723,1763491221420,-505.16,0.0004169,30]
[394359724,1763491221471,-505.16,0.0004169,30]
[394359725,1763491221518,-505.16,0.0004169,30]
[394359726,1763491221727,-505.16,0.0004169,30]
[394359727,1763491221785,-505.16,0.0004169,30]
[394359728,1763491221845,-505.22612777,0.0004169,30]
[394359729,1763491221908,-576.43,0.0004169,120]
[394359730,1763491221980,-576.43,0.0004169,120]
[394359731,1763491222045,-576.43,0.0004169,120]
[394359732,1763491222105,-576.43,0.0004169,120]
[394359733,1763491222170,-576.43,0.0004169,120]
[394359734,1763491222244,-576.43,0.0004169,120]
[394359735,1763491222301,-576.43,0.0004169,120]
[394359736,1763491222355,-576.43,0.0004169,120]
[394359737,1763491222408,-576.43,0.0004169,120]
[394359738,1763491222463,-576.43,0.0004169,120]
[394359740,1763491222513,-500.0,0.0004169,120]
[394359741,1763491222567,-576.43,0.0004169,120]
[394359742,1763491222620,-576.43,0.0004169,120]
[394359743,1763491222671,-576.43,0.0004169,120]
[394359744,1763491222729,-576.43,0.0004169,120]
[394359745,1763491222779,-576.43,0.0004169,120]
[394359746,1763491222831,-576.43,0.0004169,120]
[394359747,1763491222881,-576.43,0.0004169,120]
[394359748,1763491222936,-576.43,0.0004169,120]
[394359749,1763491222986,-576.43,0.0004169,120]
[394359750,1763491223038,-576.43,0.0004169,120]
[394359751,1763491223089,-576.43,0.0004169,120]
[394359752,1763491223140,-576.43,0.0004169,120]
[394359753,1763491223194,-576.43,0.0004169,120]
[394359754,1763491223246,-576.4516407,0.0004169,120]
[394359755,1763491223307,-514.96,0.0004169,120]
[394359756,1763491223371,-514.96,0.0004169,120]
[394359757,1763491223430,-514.96,0.0004169,120]
[394359758,1763491223484,-514.96,0.0004169,120]
[394359759,1763491223540,-514.96,0.0004169,120]
[394359760,1763491223592,-514.96,0.0004169,120]
[394359761,1763491223645,-514.96,0.0004169,120]
[394359762,1763491223697,-514.96,0.0004169,120]
[394359763,1763491223748,-514.96,0.0004169,120]
[394359764,1763491223799,-514.96,0.0004169,120]
[394359765,1763491223849,-514.96,0.0004169,120]
[394359766,1763491223902,-514.96,0.0004169,120]
[394359767,1763491223954,-514.96,0.0004169,120]
[394359768,1763491224007,-514.96,0.0004169,120]
[394359769,1763491224059,-514.96,0.0004169,120]
[394359770,1763491224110,-514.96,0.0004169,120]
[394359771,1763491224163,-514.96,0.0004169,120]
[394359772,1763491224219,-514.96,0.0004169,120]
[394359773,1763491224272,-514.96,0.0004169,120]
[394359774,1763491224324,-514.96,0.0004169,120]
[394359775,1763491224373,-514.96,0.0004169,120]
[394359776,1763491224424,-514.96,0.0004169,120]
[394359777,1763491224477,-514.96,0.0004169,120]
[394359778,1763491224528,-515.0,0.0004169,120]
[394359779,1763491224578,-500.0,0.0004169,120]
[394359780,1763491224627,-500.0,0.0004169,120]
[394359781,1763491224679,-500.0,0.0004169,120]
[394359782,1763491224727,-500.0,0.0004169,120]
[394359783,1763491224775,-500.0,0.0004169,120]
[394359784,1763491224821,-500.0,0.0004169,120]
[394359785,1763491224867,-500.0,0.0004169,120]
[394359786,1763491224915,-500.0,0.0004169,120]
[394359787,1763491224963,-500.0,0.0004169,120]
[394359788,1763491225012,-500.0,0.0004169,120]
[394359789,1763491225062,-500.0,0.0004169,120]
[394359790,1763491225112,-500.0,0.0004169,120]
[394359791,1763491225161,-500.0,0.0004169,120]
[394359792,1763491225212,-500.0,0.0004169,120]
[394359793,1763491225259,-344.64,0.0004169,120]
[394359794,1763491225306,-500.0,0.0004169,120]
[394359795,1763491225351,-308.12538456,0.0004169,120]
[394359796,1763491225395,-220.13098538,0.0004169,120]
[394359797,1763491225440,-500.0,0.0004169,120]
[394359798,1763491225488,-332.65543854,0.0004169,120]
[394359799,1763491225536,-500.0,0.0004169,120]
[394359800,1763491225582,-500.0,0.0004169,120]
[394359801,1763491225630,-500.0,0.0004169,120]
[394359802,1763491225677,-500.0,0.0004169,120]
[394359803,1763491225726,-500.0,0.0004169,120]
[394359804,1763491225773,-560.18868361,0.0004169,120]
[394359805,1763491225817,-236.20709034,0.0004169,120]
[394359806,1763491225865,-500.0,0.0004169,120]
[394359807,1763491225909,-500.0,0.0004169,120]
[394359808,1763491225957,-500.0,0.0004169,120]
[394359809,1763491226005,-500.0,0.0004169,120]
[394359810,1763491226052,-500.0,0.0004169,120]
[394359811,1763491226102,-500.0,0.0004169,120]
[394359812,1763491226149,-500.0,0.0004169,120]
[394359813,1763491226199,-500.0,0.0004169,120]
[394359814,1763491226245,-151.0,0.0004169,30]
[394359815,1763491226292,-309.07045286,0.0004169,120]
[394359816,1763491226338,-500.0,0.0004169,120]
[394359817,1763491226383,-500.0,0.0004169,120]
[394359818,1763491226432,-151.0,0.0004169,30]
[394359819,1763491226479,-500.0,0.0004169,120]
[394359820,1763491226528,-500.0,0.0004169,120]
[394359821,1763491226574,-500.0,0.0004169,120]
[394359822,1763491226738,-151.0,0.0004169,30]